bitfinex-derivatives/quotes_SOLF0:USTF0_20250720
["timestamp","ask_amount","ask_price","bid_price","bid_amount"]
[1753023821133,3.13,180.38,180.35,8.23548349]
[1753023821336,3.13,180.38,180.37,3.14]
[1753023823436,3.13,180.38,180.35,8.23548349]
[1753023823632,6.91275138,180.36,180.35,8.23548349]
[1753023824334,12.45465138,180.36,180.35,8.23548349]
[1753023824835,3.13,180.36,180.35,8.23548349]
[1753023826541,3.13,180.35,180.31,15.36682272]
[1753023826842,3.13,180.33,180.31,15.36682272]
[1753023827043,5.5435,180.31,180.29,3.14]
[1753023827235,12.45625138,180.31,180.27,5.5445]
[1753023827543,6.91275138,180.31,180.3,3.14]
[1753023827837,3.13,180.33,180.21,108.22]
[1753023828039,3.13,180.33,180.24,3.14]
[1753023828241,8.6731,180.33,180.24,3.14]
[1753023828839,9.32545138,180.34,180.27,5.5445]
[1753023829032,9.32545138,180.34,180.28,3.14]
[1753023830638,5.5429,180.33,180.28,3.14]
[1753023830945,3.78275138,180.37,180.28,3.14]
[1753023831238,6.91275138,180.39,180.29,3.14]
[1753023831637,5.5415,180.38,180.31,5.5433]
[1753023831838,5.5415,180.38,180.32,3.14]
[1753023832041,6.91275138,180.39,180.32,3.14]
[1753023832245,3.13,180.38,180.32,3.14]
[1753023832647,5.5417,180.37,180.32,3.14]
[1753023832839,3.13,180.37,180.32,3.14]
[1753023833647,3.13,180.37,180.33,3.14]
[1753023834241,381.65631446,180.46,180.33,3.14]
[1753023834242,6.91275138,180.42,180.33,3.14]
[1753023834539,6.91275138,180.42,180.33,6.92275138]
[1753023834746,6.91275138,180.42,180.38,3.14]
[1753023835246,6.91275138,180.42,180.38,8.6811]
[1753023835444,6.91275138,180.44,180.39,3.14]
[1753023835848,3.78275138,180.45,180.39,3.14]
[1753023836643,3.13,180.46,180.39,3.14]
[1753023836842,6.91275138,180.45,180.41,3.14]
[1753023837037,3.13,180.45,180.41,3.14]
[1753023837244,3.78275138,180.47,180.41,3.14]
[1753023837744,3.78275138,180.47,180.42,5.5398]
[1753023837945,6.91275138,180.47,180.43,3.14]
[1753023838448,6.91275138,180.47,180.44,3.16]
[1753023838749,3.06,180.5,180.44,3.16]
[1753023839436,3.06,180.5,180.46,5.5386]
[1753023839642,3.78275138,180.51,180.47,3.16]
[1753023840043,6.84275138,180.51,180.47,8.6983]
[1753023840243,6.84275138,180.51,180.49,3.16]
[1753023840440,6.84275138,180.51,180.5,3.16]
[1753023840944,3.06,180.51,180.48,3.16]
[1753023841139,3.06,180.5,180.37,3.16]
[1753023841340,6.84275138,180.47,180.37,6.94275138]
[1753023841548,6.84275138,180.47,180.38,3.16]
[1753023841747,6.84275138,180.47,180.42,5.5399]
[1753023842141,6.84275138,180.47,180.45,3.16]
[1753023842844,3.06,180.47,180.45,3.16]
[1753023843048,3.06,180.47,180.46,3.16]
[1753023843348,3.06,180.46,180.45,3.16]
[1753023843750,3.06,180.46,180.43,3.16]
[1753023843950,3.06,180.46,180.44,3.16]
[1753023844143,3.78275138,180.46,180.44,3.16]
[1753023844446,3.78275138,180.45,180.36,372.54]
[1753023844649,3.78275138,180.45,180.37,3.16]
[1753023844945,6.84275138,180.47,180.37,3.16]
[1753023845249,5.38201147,180.47,180.38,2.32201147]
[1753023845444,5.38201147,180.47,180.44,3.16]
[1753023845654,5.38201147,180.47,180.38,2.32201147]
[1753023845850,8.37288777,180.54,180.36,372.54]
[1753023845851,2.32201147,180.5,180.46,3.16]
[1753023846154,3.84862295,180.49,180.46,3.16]
[1753023846453,3.84862295,180.48,180.46,3.16]
[1753023846747,3.06,180.49,180.46,5.5386]
[1753023846954,3.8490326,180.48,180.47,3.16]
[1753023847650,2.32201147,180.5,180.42,2.32201147]
[1753023847952,2.32201147,180.52,180.45,3.16]
[1753023848354,5.5364,180.55,180.47,3.16]
[1753023848355,2.32201147,180.54,180.47,3.16]
[1753023848751,3.06,180.59,180.52,3.16]
[1753023849047,5.38201147,180.57,180.52,3.16]
[1753023849254,3.06,180.57,180.52,3.16]
[1753023849453,3.77934603,180.59,180.49,3.16]
[1753023849648,3.84802192,180.58,180.49,3.16]
[1753023849849,3.77934603,180.59,180.49,3.16]
[1753023850046,3.84869224,180.58,180.55,3.16]
[1753023850346,3.06,180.61,180.54,5.5362]
[1753023850650,3.84540257,180.6,180.52,3.16]
[1753023850953,3.06,180.61,180.52,3.16]
[1753023851654,3.06,180.61,180.58,5.5351]
[1753023851955,3.06,180.61,180.59,3.16]
[1753023852251,3.06,180.61,180.6,3.16]
[1753023852647,3.06,180.69,180.63,3.16]
[1753023852956,3.06,180.63,180.56,3.16]
[1753023853156,3.77934603,180.64,180.59,5.5346]
[1753023853352,3.06,180.64,180.55,3.16]
[1753023853751,3.06,180.64,180.61,5.5342]
[1753023853957,6.83934603,180.67,180.57,3.16]
[1753023854256,6.83934603,180.67,180.64,5.5333]
[1753023854458,6.83934603,180.67,180.65,3.16]
[1753023854653,3.06,180.66,180.65,3.16]
[1753023855353,3.06,180.68,180.65,3.16]
[1753023855555,3.77934603,180.69,180.65,3.16]
[1753023855754,3.06,180.67,180.65,3.16]
[1753023856455,3.06,180.67,180.65,8.693]
[1753023856655,6.83934603,180.69,180.59,3.16]
[1753023857053,6.83934603,180.69,180.66,8.6927]
[1753023857252,6.83934603,180.69,180.66,5.5327]
[1753023857456,3.06,180.69,180.67,3.16]
[1753023857952,3.06,180.69,180.67,8.6924]
[1753023858155,6.83934603,180.71,180.68,3.16]
[1753023858358,6.83934603,180.71,180.69,3.16]
[1753023858853,3.06,180.73,180.64,3.16]
[1753023859359,6.83934603,180.73,180.64,3.16]
[1753023859758,6.83934603,180.73,180.71,3.16]
[1753023860057,3.77934603,180.73,180.71,3.16]
[1753023860250,3.06,180.72,180.71,3.16]
[1753023861257,9.83022233,180.84,180.66,3.77934603]
[1753023861452,3.06,180.76,180.67,3.16]
[1753023862757,3.06,180.76,180.72,8.6908]
[1753023862964,3.77934603,180.74,180.63,3.77934603]
[1753023863264,3.77934603,180.74,180.64,3.16]
[1753023863558,3.06,180.76,180.66,3.16]
[1753023863962,3.06,180.75,180.66,3.16]
[1753023864666,0.03499022,180.72,180.71,8.6912]
[1753023865568,3.09499022,180.72,180.71,3.16]
[1753023865956,0.03499022,180.72,180.69,3.16]
[1753023866264,3.06,180.71,180.69,3.16]
[1753023867160,3.06,180.7,180.62,3.16]
[1753023867362,3.77934603,180.65,180.55,6.93934603]
[1753023867565,6.83934603,180.65,180.63,8.6936]
[1753023867866,3.77934603,180.65,180.64,3.16]
[1753023868060,6.83934603,180.67,180.64,3.16]
[1753023868270,3.26,180.66,180.64,3.16]
[1753023868472,3.26,180.66,180.64,8.6933]
[1753023869065,3.81435438,180.67,180.65,3.27]
[1753023869271,7.07435438,180.67,180.65,3.27]
[1753023870572,7.07435438,180.67,180.66,3.27]
[1753023870779,3.81435438,180.67,180.66,3.27]
[1753023871072,3.77934603,180.67,180.66,3.27]
[1753023871279,3.77934603,180.67,180.66,8.8027]
[1753023872376,3.26,180.69,180.66,8.8027]
[1753023872573,7.03934603,180.69,180.67,8.8022]
[1753023872776,7.03934603,180.69,180.58,3.27]
[1753023872980,3.77934603,180.69,180.61,3.27]
[1753023873178,7.03934603,180.7,180.61,3.27]
[1753023873571,7.03934603,180.7,180.68,5.5321]
[1753023873777,7.03934603,180.7,180.69,3.27]
[1753023875876,3.77934603,180.7,180.67,5.5323]
[1753023876180,3.26,180.68,180.67,3.27]
[1753023876380,3.26,180.68,180.57,3.77934603]
[1753023876575,3.77934603,180.67,180.58,3.27]
[1753023876780,7.03934603,180.67,180.58,3.27]
[1753023877278,2.31676366,180.67,180.6,3.27]
[1753023877586,2.31676366,180.67,180.66,3.27]
[1753023878886,2.31676366,180.67,180.66,8.8027]
[1753023880680,6.14052511,180.67,180.66,8.8027]
[1753023880885,3.82376145,180.67,180.66,8.8027]
[1753023881186,5.57676366,180.69,180.68,3.27]
[1753023881387,9.40048729,180.69,180.68,3.27]
[1753023881586,6.14048729,180.69,180.68,8.8021]
[1753023882189,9.40048729,180.69,180.68,8.8021]
[1753023884385,9.40048729,180.69,180.67,8.8024]
[1753023884693,3.82372363,180.68,180.67,8.8024]
[1753023885988,3.26,180.67,180.6,3.27]
[1753023886185,3.26,180.64,180.6,3.27]
[1753023886385,2.31676366,180.63,180.6,3.27]
[1753023886582,2.31676366,180.63,180.54,16.41457217]
[1753023886583,3.26,180.66,180.58,3.27]
[1753023886786,3.8320556,180.65,180.58,3.27]
[1753023887089,3.8320556,180.64,180.58,3.27]
[1753023887388,5.57676366,180.66,180.65,3.27]
[1753023887588,3.83693344,180.66,180.65,3.27]
[1753023887784,3.83693344,180.66,180.65,8.803]
[1753023887979,2.31676366,180.68,180.65,3.27]
[1753023888187,3.83768946,180.67,180.65,3.27]
[1753023888387,5.57676366,180.7,180.62,3.27]
[1753023888589,3.84076798,180.69,180.62,3.27]
[1753023888791,5.57676366,180.72,180.7,5.5314]
[1753023888991,3.84111204,180.71,180.69,3.27]
[1753023889191,3.84111204,180.7,180.69,3.27]
[1753023889788,7.10111204,180.7,180.69,3.27]
[1753023889993,7.10111204,180.7,180.58,11.0701]
[1753023889994,3.26,180.69,180.63,3.27]
[1753023890195,3.26,180.67,180.63,3.27]
[1753023890395,3.84111204,180.66,180.65,5.533]
[1753023890592,3.84111204,180.66,180.65,8.803]
[1753023891296,3.26,180.69,180.66,3.27]
[1753023891494,3.85346212,180.68,180.66,3.27]
[1753023891691,3.85346212,180.67,180.66,3.27]
[1753023891891,3.85387076,180.7,180.66,3.27]
[1753023892194,3.85387076,180.69,180.66,3.27]
[1753023892396,3.85439227,180.68,180.66,3.27]
[1753023892597,0.03497624,180.7,180.66,3.27]
[1753023892897,0.03497624,180.7,180.68,5.5321]
[1753023892898,3.85934932,180.69,180.68,5.5321]
[1753023893091,3.85934932,180.69,180.68,8.8021]
[1753023893493,0.03497624,180.7,180.69,5.5318]
[1753023893698,0.03497624,180.7,180.69,8.8018]
[1753023898799,7.624e-05,180.7,180.69,8.8018]
[1753023899001,3.02007624,180.7,180.69,3.27]
[1753023899302,7.624e-05,180.7,180.69,3.27]
[1753023899496,7.624e-05,180.7,180.63,2.99]
[1753023899897,7.624e-05,180.7,180.69,5.5318]
[1753023901104,7.624e-05,180.7,180.67,2.99]
[1753023901700,7.624e-05,180.7,180.61,3.77295539]
[1753023901900,7.624e-05,180.7,180.68,2.99]
[1753023902101,3.02007624,180.7,180.68,2.99]
[1753023902406,7.624e-05,180.7,180.69,5.5318]
[1753023902806,6.0508763,180.74,180.64,3.77295539]
[1753023903005,3.02,180.72,180.7,2.99]
[1753023903507,3.02,180.72,180.71,5.5312]
[1753023903699,6.79295539,180.72,180.67,2.99]
[1753023904006,3.02,180.71,180.69,5.5317]
[1753023904307,3.02,180.71,180.65,2.99]
[1753023904607,3.02,180.71,180.7,5.5315]
[1753023906700,3.02,180.71,180.7,8.5215]
[1753023907604,3.77295539,180.72,180.71,5.5312]
[1753023907808,6.79295539,180.72,180.71,8.5212]
[1753023908804,6.79295539,180.72,180.71,5.5312]
[1753023909008,3.02,180.71,180.66,2.99]
[1753023909206,3.02,180.71,180.67,2.99]
[1753023909405,3.02,180.71,180.62,2.99]
[1753023909606,3.02,180.71,180.7,5.5315]
[1753023910708,3.02,180.71,180.69,5.5318]
[1753023910910,3.02,180.7,180.69,8.5218]
[1753023911305,3.02,180.69,180.68,8.522]
[1753023911908,3.77295539,180.72,180.6,3.77295539]
[1753023912113,3.02,180.71,180.61,2.99]
[1753023913212,3.02,180.7,180.61,2.99]
[1753023913911,3.02,180.7,180.66,8.5225]
[1753023914616,3.02,180.7,180.67,5.5324]
[1753023915117,3.02,180.67,180.57,2.99]
[1753023915316,2.31741394,180.66,180.57,2.99]
[1753023915710,5.33741394,180.69,180.6,2.31741394]
[1753023915909,5.33741394,180.69,180.61,2.99]
[1753023916205,5.33741394,180.69,180.56,11.0716]
[1753023916206,3.02,180.71,180.58,11.0702]
[1753023916406,5.33741394,180.71,180.63,2.99]
[1753023916615,3.02,180.7,180.66,5.5325]
[1753023916914,3.02,180.69,180.63,2.99]
[1753023917718,3.02,180.69,180.67,5.5324]
[1753023917906,3.02,180.69,180.68,2.99]
[1753023918112,5.33741394,180.71,180.68,2.99]
[1753023918313,3.02,180.7,180.69,2.99]
[1753023918605,3.02,180.7,180.67,8.5224]
[1753023918807,5.33741394,180.68,180.59,2.31741394]
[1753023919009,5.33741394,180.68,180.6,2.99]
[1753023919813,3.02,180.68,180.62,2.99]
[1753023920221,3.02,180.68,180.67,5.5324]
[1753023920423,3.02,180.68,180.67,8.5224]
[1753023921623,3.02,180.69,180.68,2.99]
[1753023922019,3.02,180.69,180.68,8.5221]
[1753023923720,5.33741394,180.74,180.66,2.99]
[1753023924113,5.33741394,180.74,180.71,5.531]
[1753023924317,3.02,180.73,180.71,2.99]
[1753023924721,3.02,180.73,180.72,5.5309]
[1753023925530,2.31741394,180.76,180.67,2.31741394]
[1753023925724,3.02,180.75,180.68,2.99]
[1753023926123,3.02,180.75,180.7,2.99]
[1753023926326,3.02,180.75,180.74,8.5203]
[1753023927830,3.02,180.75,180.74,2.99]
[1753023928230,3.02,180.75,180.73,5.5305]
[1753023928529,3.0,180.74,180.73,8.6305]
[1753023929433,3.0,180.74,180.73,3.1]
[1753023929832,3.0,180.74,180.72,5.5308]
[1753023930032,3.0,180.73,180.72,8.6308]
[1753023930430,3.0,180.73,180.66,2.31741394]
[1753023930635,2.31741394,180.72,180.67,3.1]
[1753023930930,3.0,180.7,180.67,3.1]
[1753023931135,3.0,180.7,180.68,3.1]
[1753023931435,3.0,180.7,180.67,5.5321]
[1753023931436,3.0,180.7,180.69,3.1]
[1753023931625,3.0,180.71,180.68,5.5321]
[1753023931930,5.5301,180.75,180.63,3.1]
[1753023931931,3.0,180.68,180.63,3.1]
[1753023932126,2.31741394,180.65,180.61,5.5342]
[1753023932330,3.0,180.63,180.62,3.1]
[1753023932532,2.31741394,180.67,180.62,3.1]
[1753023932730,3.0,180.66,180.59,2.31741394]
[1753023933031,3.0,180.66,180.6,3.1]
[1753023935735,3.0,180.66,180.61,3.1]
[1753023935935,3.0,180.65,180.61,3.1]
[1753023936739,3.0,180.65,180.62,3.1]
[1753023936937,3.0,180.65,180.63,3.1]
[1753023939741,3.0,180.65,180.64,3.1]
[1753023940038,6.0508763,180.7,180.64,3.1]
[1753023940245,2.31741394,180.69,180.59,2.31741394]
[1753023940442,3.0,180.67,180.66,3.1]
[1753023940637,5.31741394,180.67,180.56,3.1]
[1753023940836,3.0,180.64,180.56,5.41741394]
[1753023941038,3.0,180.64,180.57,3.1]
[1753023941237,3.0,180.64,180.6,5.5343]
[1753023941445,3.0,180.63,180.62,3.1]
[1753023944345,2.31741394,180.68,180.62,3.1]
[1753023944552,3.0,180.66,180.62,3.1]
[1753023945245,3.0,180.67,180.61,3.1]
[1753023945843,3.0,180.67,180.62,5.5339]
[1753023946041,3.0,180.67,180.64,3.1]
[1753023946245,3.0,180.69,180.63,3.1]
[1753023946651,3.0,180.69,180.64,2.31741394]
[1753023946845,3.0,180.69,180.65,3.1]
[1753023947046,3.0,180.69,180.68,3.1]
[1753023949948,3.0,180.68,180.67,0.03493081]
[1753023950355,3.0,180.67,180.61,3.1]
[1753023951146,8.5325,180.67,180.62,5.5339]
[1753023951352,8.5325,180.67,180.63,3.1]
[1753023951353,3.0,180.66,180.63,3.1]
[1753023952157,3.0,180.65,180.63,8.6336]
[1753023952356,3.0,180.65,180.64,3.1]
[1753023952755,3.0,180.66,180.65,3.1]
[1753023953156,3.0,180.67,180.64,5.5333]
[1753023953454,2.31741394,180.7,180.66,3.1]
[1753023953758,8.5323,180.68,180.66,3.1]
[1753023954158,3.0,180.67,180.66,3.1]
[1753023955052,5.5323,180.68,180.66,3.1]
[1753023955258,8.5323,180.68,180.67,3.1]
[1753023955761,3.0,180.69,180.68,3.1]
[1753023956164,5.5318,180.69,180.64,5.5332]
[1753023956462,3.0,180.68,180.66,3.1]
[1753023956663,2.31741394,180.69,180.66,3.1]
[1753023956857,3.0,180.68,180.66,3.1]
[1753023957057,3.0,180.67,180.66,3.1]
[1753023957558,2.31741394,180.67,180.64,3.1]
[1753023957759,6.0508763,180.7,180.64,3.1]
[1753023957954,2.31741394,180.67,180.64,3.1]
[1753023958264,7.85001394,180.67,180.64,3.1]
[1753023958466,5.57741394,180.67,180.6,2.31741394]
[1753023958664,5.57741394,180.67,180.66,3.05]
[1753023959359,8.7924,180.67,180.66,3.05]
[1753023959660,3.26,180.66,180.64,3.05]
[1753023959858,3.26,180.66,180.65,3.05]
[1753023961059,9.3108763,180.72,180.65,3.05]
[1753023961262,3.26,180.71,180.65,3.05]
[1753023961468,5.5316,180.7,180.64,2.31741394]
[1753023961664,8.7916,180.7,180.66,3.05]
[1753023961970,3.26,180.7,180.66,8.5827]
[1753023962166,3.26,180.7,180.68,3.05]
[1753023962667,3.26,180.7,180.69,3.05]
[1753023963155,5.5313,180.71,180.69,3.05]
[1753023963360,8.7913,180.71,180.7,3.05]
[1753023964764,3.26,180.71,180.7,3.05]
[1753023964966,5.57741394,180.72,180.71,3.05]
[1753023965267,11.10831394,180.72,180.71,3.05]
[1753023966173,2.31741394,180.72,180.71,3.05]
[1753023966367,3.26,180.74,180.71,3.05]
[1753023967365,8.7905,180.74,180.71,3.05]
[1753023967561,5.5305,180.74,180.71,3.05]
[1753023967762,3.26,180.73,180.64,2.31741394]
[1753023967961,3.26,180.72,180.68,5.5319]
[1753023968167,3.26,180.71,180.7,3.05]
[1753023968369,5.5318,180.7,180.62,2.31741394]
[1753023968573,5.57741394,180.7,180.67,3.05]
[1753023968764,3.26,180.7,180.67,3.05]
[1753023968972,11.10851394,180.72,180.67,8.5822]
[1753023969165,8.7911,180.72,180.68,3.05]
[1753023969478,5.5308,180.73,180.68,3.05]
[1753023969667,2.31741394,180.74,180.69,3.05]
[1753023969873,7.84831394,180.72,180.7,3.05]
[1753023970073,11.10831394,180.72,180.71,3.05]
[1753023970273,11.10831394,180.72,180.69,3.05]
[1753023970471,3.26,180.71,180.7,3.05]
[1753023971969,3.26,180.71,180.58,3.05]
[1753023972176,3.26,180.71,180.63,3.05]
[1753023972476,5.57741394,180.7,180.63,3.05]
[1753023972672,3.26,180.69,180.67,3.05]
[1753023972974,2.31741394,180.7,180.68,3.05]
[1753023973177,5.57741394,180.7,180.69,3.05]
[1753023973774,2.31741394,180.7,180.69,3.05]
[1753023974178,5.5314,180.71,180.69,3.05]
[1753023974474,2.31741394,180.71,180.7,3.05]
[1753023974675,5.57741394,180.71,180.7,3.05]
[1753023975673,11.10861394,180.71,180.7,3.05]
[1753023975970,5.57741394,180.71,180.7,3.05]
[1753023976178,5.57741394,180.71,180.67,5.5322]
[1753023976179,3.26,180.7,180.69,3.05]
[1753023977577,3.26,180.7,180.67,3.05]
[1753023977875,3.26,180.68,180.67,3.05]
[1753023978369,2.31741394,180.69,180.61,5.36741394]
[1753023978569,2.31741394,180.69,180.62,3.05]
[1753023978770,11.5819763,180.72,180.66,5.5326]
[1753023978966,3.26,180.69,180.67,3.05]
[1753023979172,2.31741394,180.7,180.67,3.05]
[1753023979373,5.57741394,180.7,180.67,3.05]
[1753023979876,2.31741394,180.7,180.68,3.05]
[1753023980077,2.31741394,180.7,180.63,3.05]
[1753023980666,2.31741394,180.7,180.66,5.5324]
[1753023980973,3.26,180.71,180.67,3.05]
[1753023981172,5.57741394,180.71,180.67,3.05]
[1753023981374,2.31741394,180.71,180.67,3.05]
[1753023981582,3.26,180.7,180.67,3.05]
[1753023982783,3.26,180.69,180.68,3.05]
[1753023982979,5.57741394,180.69,180.68,3.05]
[1753023983375,3.26,180.68,180.58,3.05]
[1753023983679,2.31741394,180.69,180.58,3.05]
[1753023983680,5.57741394,180.64,180.58,3.05]
[1753023983878,3.26,180.64,180.58,3.05]
[1753023984081,5.57741394,180.66,180.59,3.05]
[1753023984279,17.16049024,180.68,180.59,3.05]
[1753023984581,3.26,180.68,180.61,3.05]
[1753023984978,3.26,180.68,180.64,3.05]
[1753023985480,3.26,180.67,180.64,3.05]
[1753023985980,3.26,180.67,180.65,3.05]
[1753023986181,3.26,180.67,180.66,3.05]
[1753023987984,3.26,180.67,180.61,2.31741394]
[1753023987985,3.19,180.7,180.64,2.99]
[1753023988380,3.19,180.72,180.68,2.99]
[1753023989078,3.19,180.72,180.69,2.99]
[1753023989285,3.19,180.72,180.7,2.99]
[1753023989585,3.19,180.71,180.7,2.99]
[1753023989781,3.19,180.71,180.68,5.5319]
[1753023989986,3.19,180.7,180.69,2.99]
[1753023990478,3.19,180.69,180.68,2.99]
[1753023992890,3.19,180.71,180.69,2.99]
[1753023993083,2.31741394,180.72,180.69,2.99]
[1753023993278,3.19,180.7,180.69,2.99]
[1753023994183,5.50741394,180.72,180.69,8.5218]
[1753023994385,3.19,180.71,180.7,2.99]
[1753023994891,5.50741394,180.72,180.71,2.99]
[1753023995081,5.50741394,180.72,180.68,5.532]
[1753023995082,2.31741394,180.72,180.69,2.99]
[1753023995282,3.19,180.7,180.69,2.99]
[1753023995989,5.50741394,180.72,180.69,2.99]
[1753023996191,3.19,180.71,180.7,2.99]
[1753023997287,2.31741394,180.72,180.68,5.532]
[1753023997480,2.31741394,180.72,180.68,2.99]
[1753023997681,3.19,180.71,180.67,0.03498177]
[1753023997888,3.19,180.71,180.7,2.99]
[1753023999184,7.84851394,180.72,180.68,2.99]
[1753023999381,134.92209123,180.76,180.69,2.99]
[1753023999382,3.19,180.7,180.69,2.99]
[1753023999782,5.50741394,180.72,180.7,2.99]
[1753023999983,3.19,180.71,180.7,2.99]
[1753024000493,3.19,180.71,180.68,5.532]
[1753024000686,3.19,180.7,180.69,2.99]
[1753024001091,5.50741394,180.7,180.6,2.31741394]
[1753024001293,3.19,180.69,180.63,2.99]
[1753024002492,3.19,180.71,180.68,2.99]
[1753024002994,9.2408763,180.73,180.68,2.99]
[1753024003189,3.19,180.72,180.68,2.99]
[1753024003387,3.19,180.72,180.69,5.5316]
[1753024003692,3.19,180.72,180.68,2.99]
[1753024003889,3.19,180.71,180.68,2.99]
[1753024004195,3.19,180.71,180.69,2.99]
[1753024004594,3.19,180.71,180.7,2.99]
[1753024005486,2.31741394,180.73,180.64,2.31741394]
[1753024005685,5.50741394,180.73,180.65,2.99]
[1753024006094,2.31741394,180.73,180.69,5.5316]
[1753024006296,3.19,180.72,180.7,2.99]
[1753024006594,3.19,180.72,180.71,2.99]
[1753024006798,3.19,180.75,180.7,2.99]
[1753024007190,3.19,180.75,180.72,5.5307]
[1753024007390,3.19,180.75,180.73,2.99]
[1753024007997,3.19,180.75,180.73,8.5206]
[1753024008195,3.19,180.75,180.74,2.99]
[1753024008796,3.19,180.74,180.65,2.99]
[1753024009000,3.19,180.71,180.65,2.99]
[1753024009193,2.31741394,180.72,180.68,8.5221]
[1753024009398,3.19,180.7,180.69,2.99]
[1753024009592,5.50741394,180.72,180.69,2.99]
[1753024009793,3.19,180.71,180.7,2.99]
[1753024011602,5.50741394,180.71,180.7,2.99]
[1753024012101,3.19,180.71,180.7,2.99]
[1753024012503,3.19,180.71,180.7,8.5215]
[1753024013203,2.31741394,180.72,180.71,8.5212]
[1753024013403,2.31741394,180.74,180.71,2.99]
[1753024013602,5.50741394,180.74,180.71,2.99]
[1753024014103,5.50741394,180.74,180.67,2.99]
[1753024014607,3.19,180.76,180.69,2.99]
[1753024014796,3.19,180.76,180.75,5.53]
[1753024014995,5.50741394,180.78,180.75,8.52]
[1753024015201,3.19,180.77,180.76,2.99]
[1753024016204,2.31741394,180.78,180.76,2.99]
[1753024016205,2.31741394,180.78,180.76,8.5197]
[1753024016410,5.5282,180.81,180.7,2.31741394]
[1753024016603,3.19,180.79,180.78,2.99]
[1753024017909,8.7188,180.79,180.78,2.99]
[1753024018408,3.19,180.78,180.76,3.03]
[1753024018706,3.19,180.77,180.76,3.03]
[1753024020307,3.19,180.77,180.64,11.0664]
[1753024020308,3.19,180.77,180.65,3.03]
[1753024020506,3.19,180.72,180.65,3.03]
[1753024020900,3.19,180.72,180.7,5.5313]
[1753024021103,3.19,180.72,180.71,3.03]
[1753024022607,3.19,180.72,180.64,2.31741394]
[1753024022808,3.19,180.77,180.65,3.03]
[1753024023002,2.31741394,180.74,180.66,2.31741394]
[1753024023203,2.31741394,180.74,180.67,3.03]
[1753024023401,2.31741394,180.74,180.66,2.31741394]
[1753024023402,2.31741394,180.74,180.7,5.5314]
[1753024023602,3.19,180.74,180.71,3.03]
[1753024024511,3.19,180.74,180.72,3.03]
[1753024024701,3.19,180.73,180.72,3.03]
[1753024025207,2.31741394,180.74,180.71,3.03]
[1753024025409,5.50741394,180.72,180.71,3.03]
[1753024025808,3.19,180.72,180.71,3.03]
[1753024026804,3.19,180.71,180.65,3.03]
[1753024027505,3.19,180.71,180.69,3.03]
[1753024027808,3.19,180.71,180.7,3.03]
[1753024030111,2.31741394,180.72,180.7,3.03]
[1753024030313,5.50741394,180.72,180.71,3.03]
[1753024031012,3.19,180.72,180.71,3.03]
[1753024031412,3.19,180.74,180.72,5.5307]
[1753024031614,3.19,180.74,180.73,3.03]
[1753024031911,2.31741394,180.75,180.73,3.03]